[Event "*** Titled Tuesday Blitz"]
[Site "Chess.com"]
[Date "2020.04.14"]
[Round "4"]
[White "anushanlv"]
[Black "SavelijTartakover"]
[Result "1/2-1/2"]
[WhiteElo "2163"]
[BlackElo "2591"]
[TimeControl "180+1"]
[EndTime "10:37:01 PDT"]
[Termination "Game drawn by agreement"]

1. d4 {[%clk 0:03:00.6]} 1... d5 {[%clk 0:02:58.5]} 2. Nf3 {[%clk 0:03:00.6]}
2... Nf6 {[%clk 0:02:57.8]} 3. e3 {[%clk 0:02:56.7]} 3... e6 {[%clk 0:02:55.9]}
4. c4 {[%clk 0:02:56]} 4... a6 {[%clk 0:02:54.5]} 5. b3 {[%clk 0:02:53.3]} 5...
b6 {[%clk 0:02:54.1]} 6. Bd3 {[%clk 0:02:51.2]} 6... Bb7 {[%clk 0:02:53.7]} 7.
cxd5 {[%clk 0:02:50.1]} 7... exd5 {[%clk 0:02:53.1]} 8. O-O {[%clk 0:02:48.1]}
8... Nbd7 {[%clk 0:02:53.1]} 9. Bb2 {[%clk 0:02:47.6]} 9... Bd6 {[%clk
0:02:52.4]} 10. Nc3 {[%clk 0:02:46.7]} 10... Qe7 {[%clk 0:02:50.5]} 11. Rc1
{[%clk 0:02:45.7]} 11... O-O {[%clk 0:02:49.9]} 12. Ne2 {[%clk 0:02:44.5]} 12...
Rfe8 {[%clk 0:02:47.2]} 13. Ng3 {[%clk 0:02:43.9]} 13... g6 {[%clk 0:02:41.4]}
14. Qc2 {[%clk 0:02:42.3]} 14... Ne4 {[%clk 0:02:38.6]} 15. Ne5 {[%clk
0:02:41.6]} 15... Rac8 {[%clk 0:02:31.1]} 16. Nxe4 {[%clk 0:02:28.8]} 16... dxe4
{[%clk 0:02:29.7]} 17. Bxe4 {[%clk 0:02:29.3]} 17... Bxe4 {[%clk 0:02:28.8]} 18.
Qxe4 {[%clk 0:02:29.7]} 18... Nxe5 {[%clk 0:02:25.9]} 19. dxe5 {[%clk
0:02:29.8]} 19... Bxe5 {[%clk 0:02:25.8]} 20. Bxe5 {[%clk 0:02:30]} 20... Qxe5
{[%clk 0:02:25.9]} 21. Qxe5 {[%clk 0:02:30.5]} 21... Rxe5 {[%clk 0:02:26.2]} 22.
Rc6 {[%clk 0:02:30.9]} 22... Re7 {[%clk 0:01:57.2]} 23. Rfc1 {[%clk 0:02:25.8]}
23... Rd8 {[%clk 0:01:55.7]} 24. g4 {[%clk 0:02:18.1]} 24... Rd2 {[%clk
0:01:50.4]} 25. Rxc7 {[%clk 0:02:07.5]} 25... Rxc7 {[%clk 0:01:48.7]} 26. Rxc7
{[%clk 0:02:08.1]} 26... Rxa2 {[%clk 0:01:48.6]} 27. Rc6 {[%clk 0:02:05.5]}
27... b5 {[%clk 0:01:48.3]} 28. g5 {[%clk 0:02:03]} 28... a5 {[%clk 0:01:37.7]}
29. Rb6 {[%clk 0:02:01.9]} 29... b4 {[%clk 0:01:36]} 30. h4 {[%clk 0:01:59.7]}
30... Kg7 {[%clk 0:01:33.9]} 31. Kg2 {[%clk 0:01:58.3]} 31... h6 {[%clk
0:01:28.8]} 32. Kg3 {[%clk 0:01:58.3]} 32... hxg5 {[%clk 0:01:28.5]} 33. hxg5
{[%clk 0:01:58.6]} 33... Ra3 {[%clk 0:01:25.1]} 34. Ra6 {[%clk 0:01:57.8]} 34...
Rxb3 {[%clk 0:01:23.6]} 35. Rxa5 {[%clk 0:01:57.4]} 35... Rb1 {[%clk 0:01:23.4]}
36. Ra7 {[%clk 0:01:56.5]} 36... b3 {[%clk 0:01:20.8]} 1/2-1/2

[Event "*** Titled Tuesday Blitz"]
[Site "Chess.com"]
[Date "2020.04.14"]
[Round "4"]
[White "pooh2012"]
[Black "MokshAD1603"]
[Result "1-0"]
[WhiteElo "2569"]
[BlackElo "2341"]
[TimeControl "180+1"]
[EndTime "10:37:04 PDT"]
[Termination "pooh2012 won by resignation"]

1. Nf3 {[%clk 0:03:00.9]} 1... Nf6 {[%clk 0:02:58.3]} 2. g3 {[%clk 0:03:01]}
2... g6 {[%clk 0:02:57.3]} 3. b3 {[%clk 0:03:01.2]} 3... Bg7 {[%clk 0:02:58.2]}
4. Bb2 {[%clk 0:03:01.8]} 4... b6 {[%clk 0:02:58.2]} 5. Bg2 {[%clk 0:03:00.4]}
5... Bb7 {[%clk 0:02:58.6]} 6. d3 {[%clk 0:03:01]} 6... O-O {[%clk 0:02:57.4]}
7. O-O {[%clk 0:02:59]} 7... c5 {[%clk 0:02:57.2]} 8. e4 {[%clk 0:02:58.7]} 8...
Nc6 {[%clk 0:02:56.3]} 9. Qe2 {[%clk 0:02:55.5]} 9... d5 {[%clk 0:02:52.1]} 10.
Nbd2 {[%clk 0:02:52]} 10... e5 {[%clk 0:02:38.4]} 11. Nxe5 {[%clk 0:02:41.1]}
11... Nxe5 {[%clk 0:02:29.5]} 12. Bxe5 {[%clk 0:02:42]} 12... Re8 {[%clk
0:02:29.3]} 13. f4 {[%clk 0:02:41.1]} 13... d4 {[%clk 0:02:06.7]} 14. a4 {[%clk
0:02:35.3]} 14... Nd7 {[%clk 0:01:53.5]} 15. Bxg7 {[%clk 0:02:33.4]} 15... Kxg7
{[%clk 0:01:54.4]} 16. Nc4 {[%clk 0:02:30.7]} 16... a6 {[%clk 0:01:52.9]} 17.
Nd6 {[%clk 0:02:29.3]} 17... Bc6 {[%clk 0:01:34.2]} 18. Nxe8+ {[%clk 0:02:20.2]}
18... Qxe8 {[%clk 0:01:35.1]} 19. e5 {[%clk 0:02:10.3]} 19... Bxg2 {[%clk
0:01:34]} 20. Qxg2 {[%clk 0:02:11.2]} 20... Rd8 {[%clk 0:01:31.6]} 21. Rae1
{[%clk 0:02:09.5]} 21... Nf8 {[%clk 0:01:28.4]} 22. f5 {[%clk 0:02:07.4]} 22...
Kg8 {[%clk 0:01:25.8]} 23. Qb7 {[%clk 0:02:01.1]} 23... Rd7 {[%clk 0:01:19.9]}
24. Qc6 {[%clk 0:01:57.6]} 24... Qd8 {[%clk 0:01:14.4]} 25. e6 {[%clk
0:01:51.3]} 25... fxe6 {[%clk 0:01:12.9]} 26. fxe6 {[%clk 0:01:50.7]} 26... Re7
{[%clk 0:01:13.3]} 27. Qf3 {[%clk 0:01:40.5]} 27... Nxe6 {[%clk 0:01:09.7]} 28.
Rxe6 {[%clk 0:01:39.1]} 28... Rxe6 {[%clk 0:01:07.1]} 29. Qf7+ {[%clk
0:01:38.3]} 29... Kh8 {[%clk 0:01:07.1]} 30. Qxe6 {[%clk 0:01:38.1]} 1-0

[Event "*** Titled Tuesday Blitz"]
[Site "Chess.com"]
[Date "2020.04.14"]
[Round "4"]
[White "m-garcett"]
[Black "chiwii"]
[Result "0-1"]
[WhiteElo "2000"]
[BlackElo "2232"]
[TimeControl "180+1"]
[EndTime "10:37:07 PDT"]
[Termination "chiwii won by resignation"]

1. e4 {[%clk 0:03:00.9]} 1... c5 {[%clk 0:02:58.3]} 2. Nf3 {[%clk 0:03:00.2]}
2... e6 {[%clk 0:02:58.2]} 3. d4 {[%clk 0:03:00]} 3... cxd4 {[%clk 0:02:58.1]}
4. Nxd4 {[%clk 0:03:00.9]} 4... a6 {[%clk 0:02:58]} 5. Bd3 {[%clk 0:03:01.2]}
5... g6 {[%clk 0:02:57]} 6. Qe2 {[%clk 0:02:54.2]} 6... Bg7 {[%clk 0:02:57.1]}
7. Be3 {[%clk 0:02:54.5]} 7... d6 {[%clk 0:02:57]} 8. O-O {[%clk 0:02:50.7]}
8... Ne7 {[%clk 0:02:56.5]} 9. c4 {[%clk 0:02:50.5]} 9... O-O {[%clk 0:02:55.9]}
10. Nc3 {[%clk 0:02:49.8]} 10... Nbc6 {[%clk 0:02:56.3]} 11. Nc2 {[%clk
0:02:36.9]} 11... f5 {[%clk 0:02:49.6]} 12. exf5 {[%clk 0:02:23.6]} 12... Nxf5
{[%clk 0:02:48.8]} 13. Bxf5 {[%clk 0:02:20]} 13... gxf5 {[%clk 0:02:45.1]} 14.
f4 {[%clk 0:02:11.8]} 14... Qc7 {[%clk 0:02:41.6]} 15. Rad1 {[%clk 0:02:05.3]}
15... Bd7 {[%clk 0:02:39.4]} 16. Rf3 {[%clk 0:01:54.3]} 16... Ne7 {[%clk
0:02:34.1]} 17. Rg3 {[%clk 0:01:42.1]} 17... Ng6 {[%clk 0:02:33.5]} 18. Qd3
{[%clk 0:01:25.8]} 18... Rad8 {[%clk 0:02:27.5]} 19. Qxd6 {[%clk 0:01:21.8]}
19... Qxc4 {[%clk 0:02:26.7]} 20. Bd4 {[%clk 0:00:42.2]} 20... Ba4 {[%clk
0:02:16.8]} 21. Qb4 {[%clk 0:00:12.9]} 21... Qxb4 {[%clk 0:02:15]} 22. Nxb4
{[%clk 0:00:12.7]} 22... Bxd1 {[%clk 0:02:15.2]} 23. Bxg7 {[%clk 0:00:08.6]}
23... Kxg7 {[%clk 0:02:15]} 0-1

[Event "*** Titled Tuesday Blitz"]
[Site "Chess.com"]
[Date "2020.04.14"]
[Round "4"]
[White "VishnuPrasanna"]
[Black "Crazy_girl99"]
[Result "1-0"]
[WhiteElo "2685"]
[BlackElo "2506"]
[TimeControl "180+1"]
[EndTime "10:37:08 PDT"]
[Termination "VishnuPrasanna won by resignation"]

1. d4 {[%clk 0:03:00.9]} 1... Nf6 {[%clk 0:02:57.5]} 2. c4 {[%clk 0:03:01.4]}
2... e6 {[%clk 0:02:57]} 3. Nf3 {[%clk 0:03:02]} 3... d5 {[%clk 0:02:49.9]} 4.
g3 {[%clk 0:03:02.4]} 4... Be7 {[%clk 0:02:50.4]} 5. Bg2 {[%clk 0:03:02]} 5...
O-O {[%clk 0:02:49.9]} 6. Qb3 {[%clk 0:03:02.1]} 6... dxc4 {[%clk 0:02:47.3]} 7.
Qxc4 {[%clk 0:03:01.9]} 7... a6 {[%clk 0:02:46.6]} 8. Qc2 {[%clk 0:02:58.2]}
8... b5 {[%clk 0:02:43.5]} 9. Bf4 {[%clk 0:02:56.3]} 9... Nd5 {[%clk 0:02:41.4]}
10. Nc3 {[%clk 0:02:53.3]} 10... Nxf4 {[%clk 0:02:39]} 11. gxf4 {[%clk
0:02:54.2]} 11... Bb7 {[%clk 0:02:39]} 12. O-O {[%clk 0:02:46]} 12... Nd7 {[%clk
0:02:31.9]} 13. Ne4 {[%clk 0:02:40.8]} 13... h6 {[%clk 0:02:21.2]} 14. Rfd1
{[%clk 0:02:35.6]} 14... Qb8 {[%clk 0:01:42]} 15. Nc5 {[%clk 0:02:14.2]} 15...
Nxc5 {[%clk 0:01:40.2]} 16. dxc5 {[%clk 0:02:15.1]} 16... Bc6 {[%clk 0:01:40.3]}
17. Ne5 {[%clk 0:02:13.2]} 17... Bxg2 {[%clk 0:01:38.8]} 18. Kxg2 {[%clk
0:02:14.1]} 18... Rd8 {[%clk 0:01:35.2]} 19. Nc6 {[%clk 0:02:11.1]} 19... Qb7
{[%clk 0:01:32.7]} 20. Qe4 {[%clk 0:02:11.5]} 20... Kf8 {[%clk 0:01:20.5]} 21.
b4 {[%clk 0:02:09.4]} 21... Bf6 {[%clk 0:01:09.5]} 22. Rac1 {[%clk 0:02:08.9]}
22... g6 {[%clk 0:01:01.4]} 23. Kf3 {[%clk 0:02:02.7]} 23... Rxd1 {[%clk
0:01:00.5]} 24. Rxd1 {[%clk 0:02:01.4]} 24... Kg7 {[%clk 0:01:00.8]} 25. Rd7
{[%clk 0:02:00.2]} 25... Re8 {[%clk 0:00:59.6]} 26. Rxf7+ {[%clk 0:01:57.2]}
26... Kxf7 {[%clk 0:00:56.3]} 27. Ne5+ {[%clk 0:01:57.1]} 27... Bxe5 {[%clk
0:00:56.5]} 28. Qxb7 {[%clk 0:01:57.5]} 28... Bc3 {[%clk 0:00:55.8]} 29. a3
{[%clk 0:01:51.7]} 29... a5 {[%clk 0:00:52.8]} 30. Qxc7+ {[%clk 0:01:49.5]} 1-0

[Event "*** Titled Tuesday Blitz"]
[Site "Chess.com"]
[Date "2020.04.14"]
[Round "4"]
[White "CroissantNeuf"]
[Black "Playgood28"]
[Result "1-0"]
[WhiteElo "2401"]
[BlackElo "2158"]
[TimeControl "180+1"]
[EndTime "10:37:11 PDT"]
[Termination "CroissantNeuf won by resignation"]

1. Nf3 {[%clk 0:03:00.9]} 1... f5 {[%clk 0:02:59]} 2. d3 {[%clk 0:03:00.6]} 2...
d6 {[%clk 0:02:58.7]} 3. e4 {[%clk 0:03:00.9]} 3... e5 {[%clk 0:02:58.5]} 4. Nc3
{[%clk 0:02:59.9]} 4... Nc6 {[%clk 0:02:58.7]} 5. d4 {[%clk 0:02:57.6]} 5...
fxe4 {[%clk 0:02:50.4]} 6. Nxe4 {[%clk 0:02:55.1]} 6... Nxd4 {[%clk 0:02:46.7]}
7. Nxd4 {[%clk 0:02:53.1]} 7... exd4 {[%clk 0:02:45.7]} 8. Qxd4 {[%clk
0:02:50.9]} 8... Nf6 {[%clk 0:02:43.5]} 9. Bg5 {[%clk 0:02:49.1]} 9... Be7
{[%clk 0:02:43.1]} 10. Bc4 {[%clk 0:02:33]} 10... c6 {[%clk 0:02:24.2]} 11.
O-O-O {[%clk 0:02:02.7]} 11... d5 {[%clk 0:02:19.8]} 12. Nxf6+ {[%clk
0:01:51.6]} 12... gxf6 {[%clk 0:01:24.1]} 13. Rhe1 {[%clk 0:01:31.9]} 13... O-O
{[%clk 0:01:15.4]} 14. Bh6 {[%clk 0:01:29]} 14... Rf7 {[%clk 0:01:01.8]} 15. Rd3
{[%clk 0:01:08.9]} 15... dxc4 {[%clk 0:00:55.5]} 16. Qxd8+ {[%clk 0:01:05.9]}
1-0

[Event "*** Titled Tuesday Blitz"]
[Site "Chess.com"]
[Date "2020.04.14"]
[Round "4"]
[White "TomasKapitanchuk"]
[Black "Msb2"]
[Result "0-1"]
[WhiteElo "2491"]
[BlackElo "2896"]
[TimeControl "180+1"]
[EndTime "10:37:19 PDT"]
[Termination "Msb2 won by resignation"]

1. e4 {[%clk 0:03:00.9]} 1... e6 {[%clk 0:02:59.4]} 2. d4 {[%clk 0:03:00.7]}
2... d5 {[%clk 0:03:00.3]} 3. Nd2 {[%clk 0:03:00.9]} 3... Be7 {[%clk 0:02:59.4]}
4. Bd3 {[%clk 0:03:00]} 4... c5 {[%clk 0:02:58.4]} 5. dxc5 {[%clk 0:02:59]} 5...
Nf6 {[%clk 0:02:59.1]} 6. Qe2 {[%clk 0:02:58.5]} 6... O-O {[%clk 0:02:59.4]} 7.
Ngf3 {[%clk 0:02:57.9]} 7... a5 {[%clk 0:03:00]} 8. c3 {[%clk 0:02:54.2]} 8...
Na6 {[%clk 0:03:00]} 9. e5 {[%clk 0:02:54.5]} 9... Nd7 {[%clk 0:03:00.1]} 10.
O-O {[%clk 0:02:54]} 10... Naxc5 {[%clk 0:02:57.5]} 11. Bc2 {[%clk 0:02:54.1]}
11... b6 {[%clk 0:02:55.8]} 12. Re1 {[%clk 0:02:54.2]} 12... Ba6 {[%clk
0:02:48.7]} 13. Qe3 {[%clk 0:02:53.2]} 13... f6 {[%clk 0:02:49.3]} 14. exf6
{[%clk 0:02:42.1]} 14... Bxf6 {[%clk 0:02:49.1]} 15. Nb3 {[%clk 0:02:36.7]}
15... a4 {[%clk 0:02:41.6]} 16. Nxc5 {[%clk 0:02:21.8]} 16... Nxc5 {[%clk
0:02:42.5]} 17. b4 {[%clk 0:02:22.7]} 17... axb3 {[%clk 0:02:37]} 18. axb3
{[%clk 0:02:23.6]} 18... Bb7 {[%clk 0:02:09.5]} 19. Rxa8 {[%clk 0:02:13]} 19...
Bxa8 {[%clk 0:02:10.4]} 20. b4 {[%clk 0:02:08]} 20... Ne4 {[%clk 0:02:09.8]} 21.
Bxe4 {[%clk 0:01:55.9]} 21... dxe4 {[%clk 0:02:10.7]} 22. Nd4 {[%clk 0:01:56.4]}
22... Qd5 {[%clk 0:02:08.2]} 23. Bb2 {[%clk 0:01:43.4]} 23... Qa2 {[%clk
0:02:01.9]} 24. Qc1 {[%clk 0:01:29]} 24... Bd5 {[%clk 0:01:58.5]} 25. Qa1 {[%clk
0:01:26.5]} 25... Qc4 {[%clk 0:01:56.2]} 26. Qa7 {[%clk 0:01:22.7]} 26... Bxd4
{[%clk 0:01:52.7]} 27. cxd4 {[%clk 0:01:20.4]} 27... Qc2 {[%clk 0:01:52.7]} 28.
Qa1 {[%clk 0:01:02.7]} 28... Qxf2+ {[%clk 0:01:42.7]} 29. Kh1 {[%clk 0:01:03.2]}
29... e3 {[%clk 0:01:43.6]} 30. Rg1 {[%clk 0:01:02.2]} 30... e2 {[%clk 0:01:44]}
31. Bc3 {[%clk 0:00:59.5]} 31... Qxg2+ {[%clk 0:01:38]} 32. Rxg2 {[%clk
0:00:57]} 32... Rf1+ {[%clk 0:01:38.9]} 0-1

[Event "*** Titled Tuesday Blitz"]
[Site "Chess.com"]
[Date "2020.04.14"]
[Round "4"]
[White "giantslayer83"]
[Black "Lupul_Cenusiu"]
[Result "1-0"]
[WhiteElo "2727"]
[BlackElo "2481"]
[TimeControl "180+1"]
[EndTime "10:37:21 PDT"]
[Termination "giantslayer83 won by checkmate"]

1. d4 {[%clk 0:03:00.9]} 1... Nf6 {[%clk 0:02:59.2]} 2. c4 {[%clk 0:02:59.3]}
2... e6 {[%clk 0:02:59.2]} 3. Nf3 {[%clk 0:02:58.9]} 3... d5 {[%clk 0:02:59.2]}
4. Nc3 {[%clk 0:02:58.7]} 4... Be7 {[%clk 0:02:59.3]} 5. Bf4 {[%clk 0:02:58.3]}
5... O-O {[%clk 0:02:58.8]} 6. e3 {[%clk 0:02:58.1]} 6... a6 {[%clk 0:02:58.6]}
7. c5 {[%clk 0:02:54.4]} 7... Nc6 {[%clk 0:02:52.4]} 8. a3 {[%clk 0:02:51]} 8...
Ne4 {[%clk 0:02:48.3]} 9. Bd3 {[%clk 0:02:48.4]} 9... f5 {[%clk 0:02:47.8]} 10.
Ne5 {[%clk 0:02:45.7]} 10... Nxe5 {[%clk 0:02:43.6]} 11. Bxe5 {[%clk 0:02:45.6]}
11... Bf6 {[%clk 0:02:39.2]} 12. Bxf6 {[%clk 0:02:33.9]} 12... Qxf6 {[%clk
0:02:28.9]} 13. O-O {[%clk 0:02:33.6]} 13... Bd7 {[%clk 0:02:19.5]} 14. f3
{[%clk 0:02:33.2]} 14... Nxc3 {[%clk 0:02:13.9]} 15. bxc3 {[%clk 0:02:34.1]}
15... e5 {[%clk 0:02:10]} 16. Qb3 {[%clk 0:02:25]} 16... Bc6 {[%clk 0:02:09.4]}
17. f4 {[%clk 0:02:20.2]} 17... exd4 {[%clk 0:02:02.4]} 18. exd4 {[%clk
0:02:19.2]} 18... Rae8 {[%clk 0:01:52.8]} 19. Rae1 {[%clk 0:02:18.7]} 19... Rxe1
{[%clk 0:01:48.8]} 20. Rxe1 {[%clk 0:02:18.6]} 20... Qh4 {[%clk 0:01:45.3]} 21.
g3 {[%clk 0:02:18.2]} 21... Qd8 {[%clk 0:01:43.2]} 22. Re5 {[%clk 0:02:16.8]}
22... g6 {[%clk 0:01:43.4]} 23. c4 {[%clk 0:02:12.8]} 23... dxc4 {[%clk
0:01:35]} 24. Bxc4+ {[%clk 0:02:13.7]} 24... Kg7 {[%clk 0:01:33.1]} 25. d5
{[%clk 0:02:13.5]} 25... Bb5 {[%clk 0:01:28.7]} 26. Bxb5 {[%clk 0:02:11.4]}
26... axb5 {[%clk 0:01:28.3]} 27. Qxb5 {[%clk 0:02:12.3]} 27... Qa8 {[%clk
0:01:22.7]} 28. a4 {[%clk 0:02:05]} 28... c6 {[%clk 0:01:16.7]} 29. Qb2 {[%clk
0:01:54.5]} 29... Kh6 {[%clk 0:01:13.6]} 30. Re7 {[%clk 0:01:53]} 30... Qxa4
{[%clk 0:00:46.4]} 31. Qg7+ {[%clk 0:01:51.2]} 31... Kh5 {[%clk 0:00:46.5]} 32.
Qxh7+ {[%clk 0:01:49.4]} 32... Kg4 {[%clk 0:00:46.4]} 33. Qxg6+ {[%clk
0:01:47.4]} 33... Kf3 {[%clk 0:00:46.2]} 34. Qh5# {[%clk 0:01:47.6]} 1-0

[Event "*** Titled Tuesday Blitz"]
[Site "Chess.com"]
[Date "2020.04.14"]
[Round "4"]
[White "ENEASZ"]
[Black "SmoothAsAHedgehog"]
[Result "0-1"]
[WhiteElo "2498"]
[BlackElo "2664"]
[TimeControl "180+1"]
[EndTime "10:37:22 PDT"]
[Termination "SmoothAsAHedgehog won on time"]

1. e4 {[%clk 0:03:00.9]} 1... e5 {[%clk 0:02:58.3]} 2. Nf3 {[%clk 0:02:58.1]}
2... Nc6 {[%clk 0:02:58]} 3. Bc4 {[%clk 0:02:57.7]} 3... Bc5 {[%clk 0:02:57.3]}
4. O-O {[%clk 0:02:52.9]} 4... Nf6 {[%clk 0:02:53.8]} 5. d3 {[%clk 0:02:52.7]}
5... d6 {[%clk 0:02:53.1]} 6. c3 {[%clk 0:02:43.7]} 6... O-O {[%clk 0:02:51.3]}
7. Nbd2 {[%clk 0:02:29.8]} 7... Bb6 {[%clk 0:02:49.4]} 8. h3 {[%clk 0:02:23]}
8... Ne7 {[%clk 0:02:49.3]} 9. Re1 {[%clk 0:02:19.6]} 9... Ng6 {[%clk
0:02:49.7]} 10. Nf1 {[%clk 0:02:12.9]} 10... h6 {[%clk 0:02:49]} 11. Be3 {[%clk
0:02:07.2]} 11... Nh7 {[%clk 0:02:48]} 12. Ng3 {[%clk 0:02:01.7]} 12... Qf6
{[%clk 0:02:47.6]} 13. d4 {[%clk 0:01:40.3]} 13... Ng5 {[%clk 0:02:46.1]} 14.
Nxg5 {[%clk 0:01:34.9]} 14... hxg5 {[%clk 0:02:47]} 15. f3 {[%clk 0:00:47.9]}
15... Nf4 {[%clk 0:02:45.3]} 16. Qd2 {[%clk 0:00:32.1]} 16... g6 {[%clk
0:02:44]} 17. dxe5 {[%clk 0:00:21.7]} 17... dxe5 {[%clk 0:02:43.8]} 18. Bxb6
{[%clk 0:00:21.7]} 18... axb6 {[%clk 0:02:44.7]} 19. Nf1 {[%clk 0:00:20]} 19...
Kg7 {[%clk 0:02:44.2]} 20. Ne3 {[%clk 0:00:18.9]} 20... c6 {[%clk 0:02:24.9]}
21. Ng4 {[%clk 0:00:07.7]} 21... Qe7 {[%clk 0:02:18]} 22. Bb3 {[%clk 0:00:02.2]}
22... Bxg4 {[%clk 0:02:11.1]} 23. hxg4 {[%clk 0:00:01.7]} 23... Rad8 {[%clk
0:02:08.9]} 0-1

[Event "*** Titled Tuesday Blitz"]
[Site "Chess.com"]
[Date "2020.04.14"]
[Round "4"]
[White "Alopekos"]
[Black "ARMQUEEN"]
[Result "0-1"]
[WhiteElo "2422"]
[BlackElo "2251"]
[TimeControl "180+1"]
[EndTime "10:37:25 PDT"]
[Termination "ARMQUEEN won on time"]

1. e4 {[%clk 0:03:00.9]} 1... c5 {[%clk 0:02:47.5]} 2. Nc3 {[%clk 0:03:00.4]}
2... Nc6 {[%clk 0:02:46.1]} 3. Nge2 {[%clk 0:03:00.7]} 3... g6 {[%clk
0:02:45.8]} 4. d4 {[%clk 0:03:00.9]} 4... cxd4 {[%clk 0:02:46.3]} 5. Nxd4 {[%clk
0:03:01.8]} 5... Bg7 {[%clk 0:02:46.7]} 6. Nxc6 {[%clk 0:03:02.3]} 6... bxc6
{[%clk 0:02:46.5]} 7. Bc4 {[%clk 0:03:03]} 7... Qa5 {[%clk 0:02:45.1]} 8. Bd2
{[%clk 0:03:02.5]} 8... Qb6 {[%clk 0:02:42.6]} 9. Qf3 {[%clk 0:02:26.4]} 9... e6
{[%clk 0:02:37.9]} 10. O-O {[%clk 0:02:14.6]} 10... Ne7 {[%clk 0:02:32]} 11. Bg5
{[%clk 0:01:49.4]} 11... Qxb2 {[%clk 0:02:23.4]} 12. Bf6 {[%clk 0:01:46.7]}
12... O-O {[%clk 0:02:04.4]} 13. Nd5 {[%clk 0:00:41.6]} 13... Bxf6 {[%clk
0:02:02.6]} 14. Nxf6+ {[%clk 0:00:27.1]} 14... Kg7 {[%clk 0:02:02.3]} 15. c3
{[%clk 0:00:23.2]} 15... Qd2 {[%clk 0:01:51.9]} 16. Rfd1 {[%clk 0:00:07.6]}
16... Qg5 {[%clk 0:01:51.2]} 17. Nxd7 {[%clk 0:00:05.6]} 17... Rd8 {[%clk
0:01:51.2]} 0-1

[Event "*** Titled Tuesday Blitz"]
[Site "Chess.com"]
[Date "2020.04.14"]
[Round "4"]
[White "Durarbayli"]
[Black "FrogMist"]
[Result "1-0"]
[WhiteElo "2820"]
[BlackElo "2478"]
[TimeControl "180+1"]
[EndTime "10:37:28 PDT"]
[Termination "Durarbayli won by resignation"]

1. e4 {[%clk 0:03:00.9]} 1... e5 {[%clk 0:02:59.8]} 2. Nf3 {[%clk 0:02:59.7]}
2... Nc6 {[%clk 0:02:59.7]} 3. Bb5 {[%clk 0:02:59.7]} 3... a6 {[%clk 0:02:56.6]}
4. Ba4 {[%clk 0:02:59.7]} 4... Nf6 {[%clk 0:02:56.8]} 5. d3 {[%clk 0:03:00.1]}
5... Bc5 {[%clk 0:02:55]} 6. Bxc6 {[%clk 0:02:56.1]} 6... dxc6 {[%clk
0:02:54.3]} 7. O-O {[%clk 0:02:55.4]} 7... Bd6 {[%clk 0:02:49.2]} 8. Nbd2 {[%clk
0:02:54.7]} 8... Be6 {[%clk 0:02:44.2]} 9. b3 {[%clk 0:02:54.1]} 9... Nd7 {[%clk
0:02:40.4]} 10. Bb2 {[%clk 0:02:53.5]} 10... f6 {[%clk 0:02:40.2]} 11. Nc4
{[%clk 0:02:53.3]} 11... Qe7 {[%clk 0:02:23.8]} 12. Ne3 {[%clk 0:02:37.7]} 12...
c5 {[%clk 0:01:45.4]} 13. Nd2 {[%clk 0:02:35.6]} 13... Nb8 {[%clk 0:01:44.6]}
14. Ndc4 {[%clk 0:02:34.6]} 14... Nc6 {[%clk 0:01:44.3]} 15. Nxd6+ {[%clk
0:02:34.3]} 15... Qxd6 {[%clk 0:01:41.9]} 16. Qh5+ {[%clk 0:02:25]} 16... g6
{[%clk 0:01:33.6]} 17. Qh4 {[%clk 0:02:24.1]} 17... Bf7 {[%clk 0:01:26.6]} 18.
f4 {[%clk 0:02:22.6]} 18... exf4 {[%clk 0:00:28.3]} 19. Qxf4 {[%clk 0:02:10.4]}
19... Qxf4 {[%clk 0:00:17.5]} 20. Rxf4 {[%clk 0:02:11.3]} 20... O-O {[%clk
0:00:18]} 21. Rxf6 {[%clk 0:02:08.8]} 21... Rae8 {[%clk 0:00:15.2]} 22. Ng4
{[%clk 0:02:00.8]} 22... h5 {[%clk 0:00:11.6]} 23. Nh6+ {[%clk 0:01:57.8]} 23...
Kg7 {[%clk 0:00:12.2]} 24. Rxf7+ {[%clk 0:01:55.9]} 24... Kxh6 {[%clk
0:00:12.3]} 25. Bg7+ {[%clk 0:01:56.2]} 1-0

[Event "*** Titled Tuesday Blitz"]
[Site "Chess.com"]
[Date "2020.04.14"]
[Round "4"]
[White "Berardino"]
[Black "Harry_Rakkel"]
[Result "0-1"]
[WhiteElo "2681"]
[BlackElo "2533"]
[TimeControl "180+1"]
[EndTime "10:37:29 PDT"]
[Termination "Harry_Rakkel won by resignation"]

1. e4 {[%clk 0:03:00.9]} 1... c5 {[%clk 0:02:58.5]} 2. Nc3 {[%clk 0:03:00.5]}
2... Nc6 {[%clk 0:02:55.1]} 3. g3 {[%clk 0:03:00.8]} 3... g6 {[%clk 0:02:54.1]}
4. Bg2 {[%clk 0:03:01]} 4... Bg7 {[%clk 0:02:54.4]} 5. d3 {[%clk 0:03:01.5]}
5... d6 {[%clk 0:02:54.2]} 6. Be3 {[%clk 0:03:01.5]} 6... Rb8 {[%clk 0:02:53]}
7. Qd2 {[%clk 0:03:00.9]} 7... b5 {[%clk 0:02:52.5]} 8. Nge2 {[%clk 0:03:01.3]}
8... b4 {[%clk 0:02:52]} 9. Nd1 {[%clk 0:03:01.6]} 9... Nd4 {[%clk 0:02:51.1]}
10. O-O {[%clk 0:03:01.1]} 10... e6 {[%clk 0:02:42]} 11. Nc1 {[%clk 0:02:59.7]}
11... Ne7 {[%clk 0:02:39.7]} 12. c3 {[%clk 0:02:55.6]} 12... bxc3 {[%clk
0:02:39.4]} 13. bxc3 {[%clk 0:02:56.5]} 13... Ndc6 {[%clk 0:02:39.2]} 14. Bh6
{[%clk 0:02:45.4]} 14... O-O {[%clk 0:02:37.9]} 15. Bxg7 {[%clk 0:02:45.8]}
15... Kxg7 {[%clk 0:02:37.9]} 16. d4 {[%clk 0:02:36.3]} 16... cxd4 {[%clk
0:02:35.8]} 17. cxd4 {[%clk 0:02:37.2]} 17... Qa5 {[%clk 0:02:31.9]} 18. Qe3
{[%clk 0:01:49.3]} 18... Ba6 {[%clk 0:02:30.3]} 19. Nb3 {[%clk 0:01:39.1]} 19...
Rxb3 {[%clk 0:02:23]} 20. Qxb3 {[%clk 0:01:39.1]} 20... Bxf1 {[%clk 0:02:22.1]}
21. Bxf1 {[%clk 0:01:36.3]} 21... Nxd4 {[%clk 0:02:21.6]} 22. Qb7 {[%clk
0:01:23.3]} 22... Nec6 {[%clk 0:02:14.3]} 23. Rc1 {[%clk 0:01:20.8]} 23... Rb8
{[%clk 0:02:09.7]} 24. Qd7 {[%clk 0:01:20.7]} 24... Qd2 {[%clk 0:02:01.9]} 25.
Rxc6 {[%clk 0:00:51.8]} 25... Nxc6 {[%clk 0:02:00.7]} 26. Ne3 {[%clk 0:00:52.2]}
26... Rb2 {[%clk 0:01:49.2]} 0-1